Cogmind - Beta 12 @@@ ROGUE MODE // 2023.04.21 @ 18:27:54 Player: omewwes Result: Escaped! Performance ------------- Evolutions (9) 4500 Regions Visited (25) 5000 Robots Destroyed (270) 1350 Value Destroyed (13879) 13879 Prototype IDs (50) 1000 Alien Tech Used (12) 2400 Bonus (15856) 15856 TOTAL SCORE: 43985 Bonus ------- Triggered High Security 500 High Alert Combat Kills 3623 Follower Combat Kills 1125 Met Zhirov 300 Met Warlord at Base 500 MAIN.C Attacked Warlord 500 Warlord Defense Kills 948 Hacked Protovariant 500 Met Warlord at Research 2000 Acquired SGEMP 2000 Delivered SGEMP 2000 Win 3000 Friendly Fire -1140 Cogmind --------- Core Integrity 1081/1600 Matter 416/425 Energy 453/728 System Corruption 7% Temperature Cool (8) Movement Treading (59) Location To Epsilon Eridani Parts ------- > --- POWER (4) -------- Multi-Quantum Reactor > --- PROPULSION (6) --- Treaded QT-Antigrav Exoskeleton > --- UTILITY (12) ----- Armored Scrap Engine Long-range Sensor Array Advanced Transmission Jammer > --- WEAPON (4) ------- (None) > --- INVENTORY (5) ---- Compact Matter Pod (150) Advanced Actuator Array Gamma Rifle Peak State ------------ > --- POWER ------------ Multi-Quantum Reactor > --- PROPULSION ------- Treaded QT-Antigrav Exoskeleton > --- UTILITY ---------- Armored Scrap Engine High-capacity Storage Unit Advanced Sensor Array Advanced Signal Interpreter Advanced Transmission Jammer SHELL Armor Advanced Force Field Experimental Hacking Suite Ghost Barrier > --- WEAPON ----------- Core Stripper Sigix Broadsword > --- INVENTORY -------- Advanced Cooling System Long-range Terrain Scanner Advanced Targeting Computer Advanced Transmission Jammer Advanced ECM Suite Experimental Phase Shifter Graphene Brace Experimental EM Disruption Field Antimissile System Transdimensional Reconstructor High-powered Transdimensional Reconstructor Sigix Sheargun Sigix Sheargun Chain Missile Launcher SGEMP Prototype [Rating: 234] Favorites ----------- Power Constructs Engine Ion Engine Power Core Light Fission Core Reactor Constructs Propulsion Constructs Treads Constructs Leg Aluminum Leg Hover Unit Aerolev Unit Utility Improved Melee Analysis Suite Device Armored Scrap Engine Storage Medium Storage Unit Processor Improved Melee Analysis Suite Hackware Hacking Suite Protection SHELL Armor Weapon Sigix Broadsword Energy Gun Sigix Sheargun Energy Cannon Constructs Ballistic Gun Shotgun Ballistic Cannon Light Cannon Launcher Smartbomb Launcher Special Weapon Improved Plasma Cutter Impact Weapon Powered Hammer Slashing Weapon Sigix Broadsword Piercing Weapon Kinetic Spear Special Melee Weapon Advanced Datajack Build | -11 -10 -10 -10 -9 -8 -7 -7 -7 -5 -5 -5 -5 -4 -4 -4 -4 -4 -3 -3 -3 -2 -2 -2 -1 -1 ------- Run | Jun Mat Min Exi Min Mat Fac Sto Rec Fac Upp Upp War Pro Fac Upp Upp Zhi Pro Res Qua Res Tes Sec Acc Com Slots Evolved 16 | . . . . . 4 2 . . 4 . . . . 2 . . . . 2 . 2 . . . . Power 1 | . . . . . . . . . . . . . . . . . . . 1 . . . . . . Propulsion 4 | . . . . . 2 . . . 1 . . . . . . . . . 1 . . . . . . Utility 9 | . . . . . 2 2 . . 3 . . . . 2 . . . . . . . . . . . Weapon 2 | . . . . . . . . . . . . . . . . . . . . . 2 . . . . Parts Attached 270 | . 4 5 . 3 23 10 3 2 15 1 . 16 1 22 6 3 5 1 14 9 8 33 40 12 34 Power 10 | . . 1 . . 2 . . 1 2 . . . . . . . . . 2 2 . . . . . Engine 5 | . . 1 . . 2 . . . . . . . . . . . . . 2 . . . . . . Core 3 | . . . . . . . . 1 2 . . . . . . . . . . . . . . . . Reactor 2 | . . . . . . . . . . . . . . . . . . . . 2 . . . . . Propulsion 14 | . . 1 . 1 10 1 . . 1 . . . . . . . . . . . . . . . . Treads 4 | . . . . . 4 . . . . . . . . . . . . . . . . . . . . Leg 4 | . . 1 . 1 2 . . . . . . . . . . . . . . . . . . . . Wheel . | . . . . . . . . . . . . . . . . . . . . . . . . . . Hover 6 | . . . . . 4 1 . . 1 . . . . . . . . . . . . . . . . Flight . | . . . . . . . . . . . . . . . . . . . . . . . . . . Utility 145 | . 1 . . . 4 6 . 1 6 . . 5 1 10 . 2 4 . 6 4 7 28 34 6 20 Device 107 | . . . . . 1 2 . 1 5 . . 4 1 5 . 1 3 . 2 3 5 21 31 3 19 Storage 3 | . . . . . 1 . . . . . . . . 1 . . . . . 1 . . . . . Processor 12 | . . . . . 2 2 . . . . . . . 1 . . . . 2 . 1 1 1 2 . Hackware 4 | . . . . . . . . . 1 . . . . . . . . . . . . 2 . . 1 Protection 19 | . 1 . . . . 2 . . . . . 1 . 3 . 1 1 . 2 . 1 4 2 1 . Artifact . | . . . . . . . . . . . . . . . . . . . . . . . . . . Weapon 101 | . 3 3 . 2 7 3 3 . 6 1 . 11 . 12 6 1 1 1 6 3 1 5 6 6 14 Energy Gun 24 | . 2 . . 1 . . . . . . . 5 . 1 2 . . . 1 . . . 4 3 5 Energy Cannon 5 | . . . . . . . . . . . . . . . . . . . . . . . . . 5 Ballistic Gun 3 | . . . . . 3 . . . . . . . . . . . . . . . . . . . . Ballistic Cannon 4 | . . 2 . . . . . . . . . . . . . . . . 1 1 . . . . . Launcher 19 | . 1 1 . 1 . 2 1 . 1 1 . 1 . 1 1 . . . 1 . . . . 3 4 Special Weapon 3 | . . . . . . . . . . . . 1 . . 1 1 . . . . . . . . . Impact Weapon 7 | . . . . . 3 . . . . . . . . . . . . . . . 1 1 2 . . Slashing Weapon 7 | . . . . . 1 1 2 . 1 . . . . . . . . . . 2 . . . . . Piercing Weapon 25 | . . . . . . . . . 4 . . 4 . 7 2 . 1 1 2 . . 4 . . . Special Melee Weapon 4 | . . . . . . . . . . . . . . 3 . . . . 1 . . . . . . Unidentified Prototypes 33 | . . . . . 1 2 . . 1 . . 5 . . . . 3 . 1 3 1 11 3 . 2 Parts Lost 25 | . . . . 1 . . . 1 . . . . . 1 . . . . 5 . . . 2 1 14 Power 2 | . . . . . . . . 1 . . . . . . . . . . 1 . . . . . . Propulsion 1 | . . . . . . . . . . . . . . . . . . . . . . . . . 1 Utility 14 | . . . . . . . . . . . . . . 1 . . . . 3 . . . 2 1 7 Weapon 8 | . . . . 1 . . . . . . . . . . . . . . 1 . . . . . 6 Highest Loss Streak 6 | . . . . 1 . . . 1 . . . . . 1 . . . . 2 . . . 1 1 6 To Critical Strikes 1 | . . . . . . . . . . . . . . . . . . . . . . . . . 1 Average Slot Usage (%) 70 | . 98 99 100 99 96 98 100 79 70 64 64 68 70 71 67 71 69 68 59 61 61 63 62 55 49 Engine 2 | . 14 13 14 14 9 7 7 2 . . . . . . . . . . 1 . . . . . . Core 1 | . . . . . . . . . 4 5 5 5 5 . . . . . . . . . . . . Reactor 2 | . . . . . . . . . . . . . . 4 5 5 5 5 4 4 4 4 3 3 3 Treads 1 | . . . . . 19 . . . 2 . . . . . . . . 1 . . . . . . 1 Leg 4 | . 28 28 28 28 4 . . . . 4 5 4 . . . . . . 1 . . . 3 2 . Hover 3 | . . . . . 11 30 30 23 1 . . . 5 5 5 5 4 3 2 3 4 1 . . 1 Device 15 | . . . . . 7 8 7 6 16 17 17 16 13 22 21 24 26 26 21 23 21 19 19 17 14 Storage 5 | . 14 14 14 14 9 7 7 7 5 5 5 5 5 5 5 5 5 5 4 4 4 4 3 3 2 Processor 10 | . . . . . 13 22 23 23 17 17 17 17 17 12 10 10 10 10 11 14 13 13 7 4 3 Hackware 3 | . . . . . . . . . 4 5 5 5 5 5 5 5 5 5 2 . . 3 7 7 6 Protection 3 | . 12 14 14 14 3 5 7 . . . . . 2 4 5 5 5 5 1 4 3 . . 1 3 Energy Gun 3 | . 26 15 14 13 . . . . . . . 4 11 . 4 . . 5 2 . 2 . 1 6 5 Ballistic Cannon 1 | . . 12 14 9 . . . . . . . . . . . . . . . 1 . . . . . Slashing Weapon 2 | . . . . . 1 6 14 15 5 . . . . . . . . . . 2 4 4 3 3 . Piercing Weapon 2 | . . . . . . . . . 4 1 . 3 . 9 4 5 3 . 1 . . 3 4 . . Naked Turns . | . . . . . . . . . . . . . . . . . . . . . . . . . . Heaviest Build 165 | 14 19 20 20 20 30 29 29 28 28 29 29 44 44 48 49 49 50 50 53 101 122 136 136 165 165 Greatest Support 151 | 20 20 20 20 20 112 33 33 33 50 74 59 59 59 59 59 51 51 55 133 142 142 142 141 141 151 Greatest Overweight (x) 2 | . . . . . . . . . 1 . . . . . . . . 1 . . . . . 1 2 Average Overweight (x) . | . . . . . . . . . . . . . . . . . . . . . . . . . . Largest Inventory Capacity 20 | 8 8 8 8 8 10 10 10 10 10 10 10 10 10 10 10 10 10 10 10 20 20 20 20 20 20 Average Capacity 13 | 8 8 8 8 8 9 10 10 10 10 10 10 10 10 10 10 10 10 10 10 19 20 20 20 20 19 Most Carried 20 | 6 7 8 7 8 10 10 10 10 10 10 10 10 9 10 10 10 10 10 10 20 20 20 20 18 20 Average Carried 12 | 5 4 7 7 7 9 9 9 9 8 9 9 9 9 7 9 9 9 9 9 15 18 19 19 14 16 Final Capacity 20 | 8 8 8 8 8 10 10 10 10 10 10 10 10 10 10 10 10 10 10 10 20 20 20 20 20 5 Final Carried 20 | 2 7 7 7 8 10 10 10 10 9 9 10 9 9 10 10 10 10 10 9 18 20 20 17 15 3 Scrap Engine Consumption 141 | . . . . . . . . 14 14 3 . 9 . 3 . 2 12 . 12 8 17 14 3 9 21 Constructs Created 5 | . . . . . . . . 1 1 . . . . . . . 1 . . . 2 . . . . Constructs Modified 60 | . . . . . . . . . 9 2 . 3 1 1 1 . 2 2 5 7 6 5 2 5 9 Class Distribution -------------------- 19% | Mutant 12% | Hacker-Mutant 12% | Scavenger-Construct 10% | Hacker-Gladiator 10% | Scavenger-Mutant 9% | Infiltrator-Mutant 6% | Infiltrator-Construct 5% | Commander-Construct 3% | Construct Dominant Class ---------------- Mutant | -10/Materials Mutant | -10/Mines Mutant | -10/Exiles Mutant | -9/Mines Mutant | -8/Materials Scavenger-Mutant | -7/Factory Scavenger-Mutant | -7/Storage Mutant | -7/Recycling Scavenger-Mutant | -5/Factory Scavenger-Construct | -5/Upper Caves Scavenger-Construct | -5/Upper Caves Commander-Construct | -5/Warlord Scavenger-Construct | -4/Proximity Caves Scavenger-Mutant | -4/Factory Infiltrator-Mutant | -4/Upper Caves Infiltrator-Mutant | -4/Upper Caves Infiltrator-Mutant | -4/Zhirov Infiltrator-Construct | -3/Proximity Caves Infiltrator-Mutant | -3/Research Infiltrator-Scout | -3/Quarantine Infiltrator-Construct | -2/Research Construct | -2/Testing Hacker-Gladiator | -2/Section 7 Hacker-Mutant | -1/Access Hacker-Mutant | -1/Command Resources | -11 -10 -10 -10 -9 -8 -7 -7 -7 -5 -5 -5 -5 -4 -4 -4 -4 -4 -3 -3 -3 -2 -2 -2 -1 -1 ----------- Run | Jun Mat Min Exi Min Mat Fac Sto Rec Fac Upp Upp War Pro Fac Upp Upp Zhi Pro Res Qua Res Tes Sec Acc Com Matter Collected 4956 | 200 . 277 . 84 290 122 10 66 176 62 18 324 10 122 289 44 60 . 159 450 108 275 518 160 1132 Remotely . | . . . . . . . . . . . . . . . . . . . . . . . . . . Salvage Created 13546 | . 129 249 . 180 761 281 328 700 449 156 . 413 132 184 383 90 130 . 464 393 443 1009 2592 1399 2681 Parts 586 | . 10 23 . 12 15 17 24 19 18 11 . 19 3 11 10 5 11 . 23 18 15 34 121 61 106 Haulers Intercepted 12 | . 1 . . . 3 1 2 . 1 . . . . . . . . . . . 3 1 . . . Recyclers Shooed 5 | . . . . 1 1 . . 2 . . . . . . . . . . . 1 . . . . . Parts Field Recycled . | . . . . . . . . . . . . . . . . . . . . . . . . . . Retrieved Matter . | . . . . . . . . . . . . . . . . . . . . . . . . . . Parts Self-Destructed 32 | . . . . . . . . . . 2 . . 3 . 17 3 7 . . . . . . . . Prevented . | . . . . . . . . . . . . . . . . . . . . . . . . . . Kills | -11 -10 -10 -10 -9 -8 -7 -7 -7 -5 -5 -5 -5 -4 -4 -4 -4 -4 -3 -3 -3 -2 -2 -2 -1 -1 ------- Run | Jun Mat Min Exi Min Mat Fac Sto Rec Fac Upp Upp War Pro Fac Upp Upp Zhi Pro Res Qua Res Tes Sec Acc Com Combat Hostiles Destroyed 194 | . 4 10 . 5 14 4 6 1 5 8 . 7 4 3 9 . . . 8 . 1 9 32 17 47 Melee 65 | . . . . . 7 . 3 1 5 1 . . . . . . . . 1 . 1 8 28 7 3 Guns 33 | . 1 2 . . . . . . . . . 4 4 . 3 . . . 5 . . . . 3 11 Cannons 20 | . . 5 . . . . . . . . . . . . . . . . . . . . . . 15 AOE 59 | . 3 3 . 5 . 3 3 . . 7 . 3 . 3 6 . . . 1 . . . . 7 15 Classes Destroyed 26 | . 5 2 . 2 1 . 2 . . 1 . 3 1 . 1 . . . . . . 4 2 1 1 Worker 20 | . . 2 . 2 5 3 . . . . . . . . . . . . . 3 . . . 2 3 Builder 6 | . 1 . . . . 2 . . . . . . . . . . . . 1 . . . . 2 . Tunneler 4 | . . 2 . 1 1 . . . . . . . . . . . . . . . . . . . . Hauler 12 | . 1 . . . 3 1 2 . 1 . . . . . . . . . . . 3 1 . . . Recycler 18 | . . . . 1 . . . 8 1 . . . . 1 . . . . 1 3 . . . 2 1 Mechanic 1 | . . . . . . . . . . . . . . . . . . . . . . . . 1 . Operator 1 | . . . . . . . 1 . . . . . . . . . . . . . . . . . . Drone 1 | . . . . . . . . . . . . . 1 . . . . . . . . . . . . Watcher 12 | . 1 . . . 1 1 . . 1 . . . . 1 . . . . 1 . 2 . 3 . 1 Swarmer 41 | . 3 6 . . 4 3 3 . 4 5 . . . 3 2 . . . . . . . 1 3 4 Saboteur 4 | . . . . . . . . . . . . . . . . . . . . . . . . . 4 Grunt 67 | . 1 4 . 4 9 1 2 . 1 . . 5 2 . 3 . . . 1 . . 2 9 6 17 Brawler 7 | . . . . . . . . . . . . . . . 2 . . . . . . . . 3 2 Duelist 8 | . . . . . 1 . . . . . . . 1 . 1 . . . 1 . . . . . 4 Researcher 2 | . . . . . . . . . . . . . . . . . . . . . . 1 1 . . Sentry 10 | . . . . . . . 1 1 . 1 . . . . 1 . . . 1 . . . 2 . 3 Hunter 11 | . . . . . . . . . . 1 . . . . . . . . 2 . 1 1 2 2 2 Programmer 33 | . . . . . . . . . . . . 1 . . . . . . 3 . . 2 14 3 10 Heavy 1 | . . . . . . . . . . . . . . . . . . . . . . . 1 . . Behemoth 1 | . . . . . . . . . . . . . . . . . . . . . . . 1 . . Enhanced Demolisher 1 | . . . . . . . . . . . . 1 . . . . . . . . . . . . . Combat Programmer 1 | . . . . . . . . . . . . . . . . . . . . . . . . . 1 Striker 2 | . . . . . . . . . . . . . . . . . . . . . . 2 . . . Executioner 1 | . . . . . . . . . . . . 1 . . . . . . . . . . . . . Alpha 7 3 | . . . . . . . . . . . . . . . . . . . . . . 1 2 . . Fortress 1 | . . . . . . . . . . . . . . . . . . . . . . 1 . . . Assembled 1 | . . . . 1 . . . . . . . . . . . . . . . . . . . . . Thug 1 | . . . . . . . . . . 1 . . . . . . . . . . . . . . . Best Kill Streak 9 | . 5 4 . 8 9 6 6 3 4 5 . 5 3 3 9 . . . 3 2 2 2 5 5 9 Combat Bots Only 9 | . 3 3 . 4 6 3 3 1 4 5 . 5 3 3 9 . . . 2 . 1 2 5 4 9 Max Kills in Single Turn 4 | . 3 2 . 3 1 2 3 1 1 4 . 3 1 3 3 . . . 1 1 1 1 1 3 2 Gunslinging . | . . . . . . . . . . . . . . . . . . . . . . . . . . Exploded 4 | . 2 2 . 2 . 2 3 . . 4 . 3 . 3 3 . . . 1 . . . . 3 2 Melee 1 | . . . . . 1 . 1 1 1 1 . . . . . . . . 1 . 1 1 1 1 1 Uniques/NPCs Destroyed . | . . . . . . . . . . . . . . . . . . . . . . . . . . Combat | -11 -10 -10 -10 -9 -8 -7 -7 -7 -5 -5 -5 -5 -4 -4 -4 -4 -4 -3 -3 -3 -2 -2 -2 -1 -1 -------- Run | Jun Mat Min Exi Min Mat Fac Sto Rec Fac Upp Upp War Pro Fac Upp Upp Zhi Pro Res Qua Res Tes Sec Acc Com Damage Taken 19552 | . 65 478 . 170 642 103 207 365 394 244 . 138 106 584 490 . . . 1756 408 106 727 2055 1441 9073 Core 1421 | . 22 114 . . 117 15 30 113 69 44 . 9 . 98 57 . . . 176 25 12 48 37 54 381 Absorbed by Shields 3964 | . . . . . 248 . 6 . . . . 108 . . . . . . 28 . 110 573 858 1409 624 Redirected to Shielding 45 | . . . . . . . . . . . . . . . . . . . . 31 14 . . . . Regen/Repaired (Parts) 9620 | . . . . . . . . 58 76 208 . 113 . . 229 100 290 . 534 396 288 804 1121 1799 3604 Core Remaining (%) 79 | 100 . . . 45 78 . . 77 . . . . 87 . . . . 86 . 78 . . 93 . 67 Volleys Fired 410 | . 12 44 . 8 7 2 2 . 2 14 . 14 13 3 13 8 5 . 46 32 1 5 2 23 154 Largest 4 | . 2 2 . 1 1 1 1 . 1 1 . 2 2 1 2 1 1 . 1 1 2 1 2 2 4 Hottest 325 | . 100 100 . 50 23 33 36 . 36 46 . 120 120 160 160 20 20 . 160 66 107 66 200 200 325 Shots Fired 520 | . 19 48 . 8 7 2 2 . 2 14 . 17 26 3 17 8 5 . 45 32 2 5 4 42 212 Gun 296 | . 16 19 . 1 7 . . . . . . 14 26 2 13 . . . 43 . 1 . 4 38 112 Cannon 154 | . . 28 . 1 . . . . . . . . . . . . . . 1 32 1 5 . . 86 Launcher 52 | . 3 1 . 6 . 2 2 . 2 14 . . . 1 2 . . . 1 . . . . 4 14 Special 18 | . . . . . . . . . . . . 3 . . 2 8 5 . . . . . . . . Kinetic 71 | . . 28 . 1 7 . . . . . . . . . . . . . 1 32 2 . . . . Thermal 145 | . 16 19 . 1 . . . . . . . 3 . . 2 8 5 . . . . 5 . . 86 Explosive 52 | . 3 1 . 6 . 2 2 . 2 14 . . . 1 2 . . . 1 . . . . 4 14 Electromagnetic 66 | . . . . . . . . . . . . . . . . . . . 11 . . . . . 55 Slashing 99 | . . . . . . . . . . . . . . . . . . . . . . . 4 38 57 Entropic 87 | . . . . . . . . . . . . 14 26 2 13 . . . 32 . . . . . . Robot Hit Streak 14 | . 11 8 . 5 4 . 1 . . 5 . 4 4 1 6 9 14 . 8 5 . . 1 5 13 Robot Miss Streak 17 | . 2 4 . 1 2 4 5 . . . . 6 17 2 2 . . . 7 . . . 1 2 5 Penetration Max 1 | . . . . . . . . . . . . . . . . . . . . . . . . 1 1 Secondary Targets 4 | . . 1 . . . . . . . . . . . . 2 . . . . . . . . . 1 Max Gunslinging Chain 1 | . . 1 . . . . . . . . . . . . 1 . . . . . . . . . 1 Capacitor 80 | . . . . . . . . . . . . . . . . . . . . . . . . . 80 Shots Hit Robots 655 | . 14 29 . 4 47 13 12 26 30 8 . 14 14 13 11 8 5 . 41 12 9 38 103 51 153 Core Hits 380 | . 11 17 . 12 10 6 7 5 10 13 . 14 10 7 18 1 2 . 22 5 4 14 37 41 114 Critical Kills 1 | . . . . . 1 . . . . . . . . . . . . . . . . . . . . Critical Parts Destroyed 15 | . . . . . 5 2 1 . . . . 5 . . 1 . . . 1 . . . . . . Critical Strikes 47 | . . 3 . . 6 2 2 3 1 . . 5 . 1 1 . 1 . 3 2 . 6 7 3 1 Burn 1 | . . 1 . . . . . . . . . . . . . . . . . . . . . . . Blast 4 | . . 2 . . . . . . . . . . . . . . . . . 2 . . . . . Corrupt 1 | . . . . . . . . . . . . . . . . . . . 1 . . . . . . Smash 9 | . . . . . 6 2 1 . . . . . . . . . . . . . . . . . . Sever 18 | . . . . . . . 1 3 . . . . . . . . 1 . . . . 4 5 3 1 Impale 7 | . . . . . . . . . 1 . . . . 1 . . . . 1 . . 2 2 . . Detonate 7 | . . . . . . . . . . . . 5 . . 1 . . . 1 . . . . . . Melee Attacks 591 | . . . . . 60 23 20 29 49 7 . 9 . 26 . . . . 15 13 21 87 181 36 15 Kinetic 13 | . . . . . . . . . . . . . . . . . . . . . . 1 12 . . Impact 73 | . . . . . 57 13 3 . . . . . . . . . . . . . . . . . . Slashing 345 | . . . . . 3 10 17 29 9 . . . . . . . . . . 13 21 59 133 36 15 Piercing 155 | . . . . . . . . . 40 7 . 9 . 25 . . . . 11 . . 27 36 . . Sneak Attacks 63 | . . . . . 10 6 3 11 2 . . . . 8 . . . . 4 4 4 3 2 6 . Combat Hostiles 7 | . . . . . . . 1 2 . . . . . . . . . . 3 . . 1 . . . Follow-up Attacks 39 | . . . . . . 2 1 . 3 1 . . . 2 . . . . . . . 10 20 . . Damage Inflicted 42964 | . 546 837 . 598 2702 992 755 1370 1257 1089 . 1394 626 456 1406 130 98 . 1941 1093 1211 3097 7704 4525 9137 Guns 6660 | . 149 178 . 13 37 . . . . . . 577 626 . 473 . . . 1369 . . . 30 794 2414 Cannons 2924 | . . 260 . 17 . . . . . . . . . . . . . . . 165 . . . . 2482 Explosions 9902 | . 397 399 . 568 . 151 173 . . 942 . 781 . 193 915 . . . 355 . . . . 1549 3479 Melee 23196 | . . . . . 2665 841 582 1370 1257 147 . . . 263 . . . . 217 928 1211 3097 7674 2182 762 Ramming . | . . . . . . . . . . . . . . . . . . . . . . . . . . Kinetic 811 | . . 260 . 17 37 . . . . . . . . . . . . . . 165 . . 332 . . Thermal 4691 | . 149 409 . 13 . . . . . . . 817 . 56 182 130 98 . 355 . . . . . 2482 Explosive 8315 | . 397 168 . 568 . 151 173 . . 942 . . . 137 751 . . . . . . . . 1549 3479 Electromagnetic 1104 | . . . . . . . . . . . . . . . . . . . 194 . . . . . 910 Impact 3239 | . . . . . 2497 579 163 . . . . . . . . . . . . . . . . . . Slashing 18762 | . . . . . 168 262 419 1370 206 . . . . . . . . . . 928 1211 2543 6413 2976 2266 Piercing 3191 | . . . . . . . . . 1051 147 . . . 263 . . . . 217 . . 554 959 . . Entropic 2851 | . . . . . . . . . . . . 577 626 . 473 . . . 1175 . . . . . . Highest Corruption 12 | . . . . . . . . . 1 1 1 1 . . . . . . 10 12 . . 9 1 7 Average Corruption 4 | . . . . . . . . . 1 1 1 1 . . . . . . 6 10 . . 6 1 2 Corruption Purged . | . . . . . . . . . . . . . . . . . . . . . . . . . . Corruption Blocked 2 | . . . . . . . . . . . . . . . . . . . . . 2 . . . . Effects 104 | . . . . . . . . . . 2 1 . . . . . . . 14 23 . . 31 2 31 Message Errors 24 | . . . . . . . . . . 1 1 . . . . . . . 3 3 . . 8 1 7 Matter Fused 30 | . . . . . . . . . . 1 . . . . . . . . 5 7 . . 7 . 10 Heat Flow Errors 12 | . . . . . . . . . . . . . . . . . . . 1 5 . . 4 . 2 Energy Discharges 14 | . . . . . . . . . . . . . . . . . . . 3 3 . . 4 . 4 Parts Fused 4 | . . . . . . . . . . . . . . . . . . . . . . . 2 . 2 Data Loss (minor) 11 | . . . . . . . . . . . . . . . . . . . . 2 . . 3 1 5 Data Loss (major) 3 | . . . . . . . . . . . . . . . . . . . . . . . 2 . 1 Alerts 3 | . . . . . . . . . . . . . . . . . . . 1 1 . . 1 . . Misdirections 2 | . . . . . . . . . . . . . . . . . . . . 2 . . . . . Weapon Failures 1 | . . . . . . . . . . . . . . . . . . . 1 . . . . . . Overload Shots . | . . . . . . . . . . . . . . . . . . . . . . . . . . Overflow Damage 4679 | . 67 34 . 15 868 407 95 339 116 57 . . . 81 18 . . . 54 287 150 436 918 576 161 Projectiles 75 | . . . . . . . . . . . . . . . . . . . . 17 . . . . 58 Explosions 390 | . 67 34 . 15 . . 36 . . 57 . . . . 18 . . . 10 . . . . 107 46 Melee 4214 | . . . . . 868 407 59 339 116 . . . . 81 . . . . 44 270 150 436 918 469 57 Knockbacks 12 | . . 2 . 1 6 2 . . . . . . . . . . . . . 1 . . . . . Impact 7 | . . . . . 5 2 . . . . . . . . . . . . . . . . . . . Kinetic 4 | . . 2 . 1 . . . . . . . . . . . . . . . 1 . . . . . Secondary 1 | . . . . . 1 . . . . . . . . . . . . . . . . . . . . Self-Inflicted Damage 603 | . . 27 . 95 . . 32 . 18 . . 38 . 57 56 . . . 94 . . . . . 186 Shots 12 | . . 1 . 2 . . 1 . 1 . . 1 . 1 1 . . . 1 . . . . . 3 Rammed . | . . . . . . . . . . . . . . . . . . . . . . . . . . Targets Rammed 1 | . . . . . . . . . . . . . . . . . . . . . . . . . 1 Kicked . | . . . . . . . . . . . . . . . . . . . . . . . . . . Crushed 1 | . . . . . . . . . . . . . . . . . . . . . . . . . 1 Highest Temperature 396 | . 370 396 . 20 . . . . . 4 . 85 201 72 219 . . . 162 242 44 145 247 146 343 Average Temperature 92 | . 198 118 . 8 . . . . . 4 . 21 67 17 92 . . . 57 102 26 44 58 72 102 Received Heat Transfer 2050 | . 6 180 . 18 272 33 38 96 135 54 . 17 70 18 59 . . . 117 9 4 36 90 110 688 Effects 6 | . 2 4 . . . . . . . . . . . . . . . . . . . . . . . Energy Bleed 2 | . 1 1 . . . . . . . . . . . . . . . . . . . . . . . Interference 1 | . . 1 . . . . . . . . . . . . . . . . . . . . . . . Matter Decay 2 | . 1 1 . . . . . . . . . . . . . . . . . . . . . . . Short Circuit 1 | . . 1 . . . . . . . . . . . . . . . . . . . . . . . Siege Activations . | . . . . . . . . . . . . . . . . . . . . . . . . . . Robots Corrupted 4 | . . . . . . . . . . . . . . . . . . . 1 . . . . . 3 Combat Hostiles 4 | . . . . . . . . . . . . . . . . . . . 1 . . . . . 3 Parts Fried 28 | . . . . . 14 5 1 . . . . . . . . . . . 2 . . . . 2 4 Impact Corruptions 45 | . . . . . 32 10 3 . . . . . . . . . . . . . . . . . . Robots Melted . | . . . . . . . . . . . . . . . . . . . . . . . . . . Combat Hostiles . | . . . . . . . . . . . . . . . . . . . . . . . . . . Parts Melted 1 | . . 1 . . . . . . . . . . . . . . . . . . . . . . . Heat Transferred 4478 | . 444 842 . 37 . . . . . . . 537 . 50 137 296 185 . 200 . . . . . 1750 Parts Sabotaged . | . . . . . . . . . . . . . . . . . . . . . . . . . . Parts Stolen . | . . . . . . . . . . . . . . . . . . . . . . . . . . Parts Stripped . | . . . . . . . . . . . . . . . . . . . . . . . . . . Power Chain Reactions 1 | . . . . . . . . . . . . . . . . . . . 1 . . . . . . Missiles Intercepted 4 | . . . . . . . . . . . . . . . . . . . . . . . . . 4 Alert | -11 -10 -10 -10 -9 -8 -7 -7 -7 -5 -5 -5 -5 -4 -4 -4 -4 -4 -3 -3 -3 -2 -2 -2 -1 -1 ------- Run | Jun Mat Min Exi Min Mat Fac Sto Rec Fac Upp Upp War Pro Fac Upp Upp Zhi Pro Res Qua Res Tes Sec Acc Com Peak Influence 2547 | . 150 371 . 149 553 499 528 317 256 . . . . 817 . . . . 281 338 394 270 721 1451 2547 Initial 928 | . . 58 . . 57 189 226 205 183 . . . . 803 . . . . . 157 154 63 36 252 928 Average 452 | . 60 196 . 21 275 300 346 275 163 . . . . 660 . . . . 139 233 206 140 311 963 1475 Maximum Alert Level 5 | . . 1 . . 2 2 2 1 1 . . . . 3 . . . . 1 1 1 1 3 4 5 Low Security (%) 36 | 100 100 44 . 100 35 24 . . 54 . . . . . . . . . 63 32 43 84 40 . . Level 1 31 | . . 55 . . 42 47 86 100 45 . . . . 8 . . . . 36 67 56 15 18 19 . Level 2 11 | . . . . . 21 28 13 . . . . . . 50 . . . . . . . . 40 8 . Level 3 7 | . . . . . . . . . . . . . . 40 . . . . . . . . . 10 35 Level 4 8 | . . . . . . . . . . . . . . . . . . . . . . . . 61 34 Level 5 2 | . . . . . . . . . . . . . . . . . . . . . . . . . 15 High Security 1 | . . . . . . . . . . . . . . . . . . . . . . . . . 14 Max Security . | . . . . . . . . . . . . . . . . . . . . . . . . . . Squads Dispatched 56 | . 2 . . . 3 4 2 . 1 . . . . . . . . . 2 2 2 10 7 3 18 Investigation 5 | . . . . . 2 2 . . . . . . . . . . . . . . . . . . 1 Extermination 14 | . . . . . . 1 . . . . . . . . . . . . 1 1 . 2 5 1 3 Reinforcement 16 | . 2 . . . 1 1 1 . 1 . . . . . . . . . 1 1 2 4 2 . . Assault 17 | . . . . . . . . . . . . . . . . . . . . . . 1 . 2 14 Garrison 4 | . . . . . . . 1 . . . . . . . . . . . . . . 3 . . . Intercept . | . . . . . . . . . . . . . . . . . . . . . . . . . . Searches Triggered 2 | . . . . . . . . . . . . . . 2 . . . . . . . . . . . Construction Impeded . | . . . . . . . . . . . . . . . . . . . . . . . . . . Haulers Reinforced 4 | . . . . . . . 1 . 1 . . . . . . . . . . . 2 . . . . Active Scanning Responses . | . . . . . . . . . . . . . . . . . . . . . . . . . . Cargo Convoy Interrupts . | . . . . . . . . . . . . . . . . . . . . . . . . . . Stealth | -11 -10 -10 -10 -9 -8 -7 -7 -7 -5 -5 -5 -5 -4 -4 -4 -4 -4 -3 -3 -3 -2 -2 -2 -1 -1 --------- Run | Jun Mat Min Exi Min Mat Fac Sto Rec Fac Upp Upp War Pro Fac Upp Upp Zhi Pro Res Qua Res Tes Sec Acc Com Distress Signals 17 | . . . . . 1 1 . . . . . 1 . 1 . . . . 2 . 2 2 2 1 4 Communications Jammed 118 | . . . . . . . . . 12 . . 5 1 . . . . . 31 4 13 . 15 26 11 Distress Signals 97 | . . . . . . . . . 12 . . 5 . . . . . . 31 4 13 . 11 10 11 Times Spotted 399 | . 8 10 . 7 32 14 10 3 12 5 . 20 9 13 16 . . . 26 13 15 14 46 42 84 Peak Tracking Total 21 | . 4 3 . 2 7 7 3 2 3 5 . 10 3 7 9 . . . 6 5 3 2 5 5 21 Tactical Retreats 38 | . . . . . 6 1 1 1 2 . . . 1 2 1 . . . 5 2 2 1 6 2 5 Traps | -11 -10 -10 -10 -9 -8 -7 -7 -7 -5 -5 -5 -5 -4 -4 -4 -4 -4 -3 -3 -3 -2 -2 -2 -1 -1 ------- Run | Jun Mat Min Exi Min Mat Fac Sto Rec Fac Upp Upp War Pro Fac Upp Upp Zhi Pro Res Qua Res Tes Sec Acc Com Traps Triggered 18 | . 1 . . . 1 2 1 . 1 . . . . 4 . . . . 1 1 . . 4 . 2 Indirectly . | . . . . . . . . . . . . . . . . . . . . . . . . . . Trap Hack Attempts . | . . . . . . . . . . . . . . . . . . . . . . . . . . Triggered . | . . . . . . . . . . . . . . . . . . . . . . . . . . Disarmed . | . . . . . . . . . . . . . . . . . . . . . . . . . . Reprogrammed . | . . . . . . . . . . . . . . . . . . . . . . . . . . Reused . | . . . . . . . . . . . . . . . . . . . . . . . . . . Traps Extracted . | . . . . . . . . . . . . . . . . . . . . . . . . . . Installed . | . . . . . . . . . . . . . . . . . . . . . . . . . . Triggered 23 | . . . . . . . . . . . . 23 . . . . . . . . . . . . . Most Traps Carried 1 | . . . . 1 . . . . . . . . . . . . . . . . . . . . . Machines | -11 -10 -10 -10 -9 -8 -7 -7 -7 -5 -5 -5 -5 -4 -4 -4 -4 -4 -3 -3 -3 -2 -2 -2 -1 -1 ---------- Run | Jun Mat Min Exi Min Mat Fac Sto Rec Fac Upp Upp War Pro Fac Upp Upp Zhi Pro Res Qua Res Tes Sec Acc Com Machines Disabled 40 | . . 7 . . . . . . . . . 2 . 2 . . . . 1 7 1 7 6 2 5 Max in Single Turn 7 | . . 7 . . . . . . . . . 2 . 2 . . . . 1 1 1 1 1 1 2 Garrison Access 5 | . . . . . 1 . . . 1 . . . . . . . . . 1 1 1 . . . . Phase Generator 1 | . . . . . . . . . . . . . . . . . . . . . . . . . 1 Machines Repaired . | . . . . . . . . . . . . . . . . . . . . . . . . . . Machines Sabotaged . | . . . . . . . . . . . . . . . . . . . . . . . . . . Overloaded Fab Kills . | . . . . . . . . . . . . . . . . . . . . . . . . . . Hacking | -11 -10 -10 -10 -9 -8 -7 -7 -7 -5 -5 -5 -5 -4 -4 -4 -4 -4 -3 -3 -3 -2 -2 -2 -1 -1 --------- Run | Jun Mat Min Exi Min Mat Fac Sto Rec Fac Upp Upp War Pro Fac Upp Upp Zhi Pro Res Qua Res Tes Sec Acc Com Machines Accessed 70 | . 1 . 1 1 5 2 6 1 6 . . 1 . 4 . . 4 . 2 6 1 8 11 5 5 Terminals 42 | . 1 . . 1 3 . 6 . 2 . . . . 2 . . . . . 5 . 6 8 3 5 Fabricators 5 | . . . . . . . . . 3 . . . . . . . . . 1 . . 1 . . . Repair Stations 2 | . . . . . . 1 . . . . . . . 1 . . . . . . . . . . . Recycling Units 3 | . . . . . 1 . . 1 . . . . . 1 . . . . . . . . . . . Scanalyzers 3 | . . . . . . . . . . . . . . . . . . . . . . . 3 . . Garrison Access 9 | . . . . . 1 1 . . 1 . . . . . . . . . 1 1 1 1 . 2 . Total Hacks 151 | . 4 . 1 1 11 3 15 1 15 . . 1 . 9 . . 17 . 2 11 1 15 19 11 14 Successful 70 | . 2 . 1 1 4 1 5 1 9 . . 1 . 2 . . 17 . 2 3 . 5 12 3 1 Failed 81 | . 2 . . . 7 2 10 . 6 . . . . 7 . . . . . 8 1 10 7 8 13 Catastrophic 20 | . . . . . . 2 2 . . . . . . 3 . . . . . 2 1 2 2 2 4 Database Lockouts . | . . . . . . . . . . . . . . . . . . . . . . . . . . Manual 61 | . 3 . . . 1 1 11 1 7 . . . . 8 . . . . 1 8 . 9 8 . 3 Terminals 96 | . 4 . . 1 8 . 15 . 7 . . . . 3 . . . . . 10 . 13 14 7 14 Fabricators 8 | . . . . . . . . . 6 . . . . . . . . . 1 . . 1 . . . Repair Stations 3 | . . . . . . 1 . . . . . . . 2 . . . . . . . . . . . Recycling Units 6 | . . . . . 1 . . 1 . . . . . 4 . . . . . . . . . . . Scanalyzers 5 | . . . . . . . . . . . . . . . . . . . . . . . 5 . . Garrison Access 14 | . . . . . 2 2 . . 2 . . . . . . . . . 1 1 1 1 . 4 . Terminal Hacks 45 | . 2 . 1 1 2 . 3 . 4 . . 1 . . . . 17 . . 1 . 4 6 3 . Record 6 | . . . 1 . . . . . . . . . . . . . 5 . . . . . . . . Part Schematic 4 | . . . . . . . . . . . . . . . . . 4 . . . . . . . . Robot Analysis 4 | . . . . . . . . . . . . . . . . . 4 . . . . . . . . Prototype ID Bank 4 | . . . . . . . . . . . . . . . . . 4 . . . . . . . . Open Door 7 | . . . . . . . 1 . . . . 1 . . . . . . . . . 1 1 3 . Branch Access Points 4 | . 1 . . . 1 . 1 . 1 . . . . . . . . . . . . . . . . Terminal Index 1 | . . . . . . . . . . . . . . . . . . . . . . . 1 . . Unreport Threat 4 | . . . . . . . . . . . . . . . . . . . . . . 1 3 . . Locate Traps 1 | . 1 . . . . . . . . . . . . . . . . . . . . . . . . Transport Status 1 | . . . . . . . . . 1 . . . . . . . . . . . . . . . . Recall Investigation 1 | . . . . . . . . . . . . . . . . . . . . . . 1 . . . Hauler Manifests 4 | . . . . . . . 1 . 1 . . . . . . . . . . 1 . . 1 . . Zone Layout 3 | . . . . 1 1 . . . 1 . . . . . . . . . . . . . . . . Protovariant Controls 1 | . . . . . . . . . . . . . . . . . . . . . . 1 . . . Fabricator Hacks 1 | . . . . . . . . . 1 . . . . . . . . . . . . . . . . Build 1 | . . . . . . . . . 1 . . . . . . . . . . . . . . . . Repair Station Hacks . | . . . . . . . . . . . . . . . . . . . . . . . . . . Recycling Unit Hacks . | . . . . . . . . . . . . . . . . . . . . . . . . . . Scanalyzer 3 | . . . . . . . . . . . . . . . . . . . . . . . 3 . . Insert Component 3 | . . . . . . . . . . . . . . . . . . . . . . . 3 . . Garrison Access Hacks 4 | . . . . . 1 . . . 1 . . . . . . . . . 1 1 . . . . . Seal Access 4 | . . . . . 1 . . . 1 . . . . . . . . . 1 1 . . . . . Unauthorized Hacks 17 | . . . . . 1 1 2 1 3 . . . . 2 . . . . 1 1 . 1 3 . 1 Terminals 10 | . . . . . . . 2 . 2 . . . . . . . . . . 1 . 1 3 . 1 Track 3 | . . . . . . . 1 . 1 . . . . . . . . . . 1 . . . . . Assimilate 3 | . . . . . . . 1 . . . . . . . . . . . . . . 1 1 . . Botnet 3 | . . . . . . . . . . . . . . . . . . . . . . . 2 . 1 Operators 1 | . . . . . . . . . 1 . . . . . . . . . . . . . . . . Fabricators 2 | . . . . . . . . . 1 . . . . . . . . . 1 . . . . . . Liberate 1 | . . . . . . . . . . . . . . . . . . . 1 . . . . . . Fabnet 1 | . . . . . . . . . 1 . . . . . . . . . . . . . . . . Repair Stations 1 | . . . . . . 1 . . . . . . . . . . . . . . . . . . . Mechanics 1 | . . . . . . 1 . . . . . . . . . . . . . . . . . . . Recycling Units 4 | . . . . . 1 . . 1 . . . . . 2 . . . . . . . . . . . Monitor 1 | . . . . . . . . . . . . . . 1 . . . . . . . . . . . Mask 1 | . . . . . . . . . . . . . . 1 . . . . . . . . . . . Tunnel 2 | . . . . . 1 . . 1 . . . . . . . . . . . . . . . . . Scanalyzers . | . . . . . . . . . . . . . . . . . . . . . . . . . . Garrison Access . | . . . . . . . . . . . . . . . . . . . . . . . . . . Data Cores Recovered 1 | . . . . . . . 1 . . . . . . . . . . . . . . . . . . Used . | . . . . . . . . . . . . . . . . . . . . . . . . . . Hacking Detections 48 | . 1 . . . 3 2 7 . 4 . . . . 4 . . . . 1 4 1 7 7 3 4 Full Trace Events 2 | . . . . . . 1 . . . . . . . . . . . . . . . . . . 1 Feedback Events . | . . . . . . . . . . . . . . . . . . . . . . . . . . Feedback Blocked . | . . . . . . . . . . . . . . . . . . . . . . . . . . Robot Schematics Acquired 4 | . . . . . . . . . . . . . . . . . . . . . . 3 1 . . Robots Built . | . . . . . . . . . . . . . . . . . . . . . . . . . . Authchips . | . . . . . . . . . . . . . . . . . . . . . . . . . . Time . | . . . . . . . . . . . . . . . . . . . . . . . . . . Total Robot Build Rating . | . . . . . . . . . . . . . . . . . . . . . . . . . . Part Schematics Acquired 11 | . . . . . . . . . . . . . . . . . 4 . . . . 5 2 . . Parts Built 1 | . . . . . . . . . 1 . . . . . . . . . . . . . . . . Authchips . | . . . . . . . . . . . . . . . . . . . . . . . . . . Time 106 | . . . . . . . . . 106 . . . . . . . . . . . . . . . . Total Part Build Rating 6 | . . . . . . . . . 6 . . . . . . . . . . . . . . . . Parts Repaired . | . . . . . . . . . . . . . . . . . . . . . . . . . . Time . | . . . . . . . . . . . . . . . . . . . . . . . . . . Parts Recycled . | . . . . . . . . . . . . . . . . . . . . . . . . . . Recycled Matter . | . . . . . . . . . . . . . . . . . . . . . . . . . . Retrieved Matter . | . . . . . . . . . . . . . . . . . . . . . . . . . . Retrieved Components . | . . . . . . . . . . . . . . . . . . . . . . . . . . Parts Scanalyzed . | . . . . . . . . . . . . . . . . . . . . . . . . . . Part Schematics Acquired . | . . . . . . . . . . . . . . . . . . . . . . . . . . Parts Damaged . | . . . . . . . . . . . . . . . . . . . . . . . . . . Bothacking | -11 -10 -10 -10 -9 -8 -7 -7 -7 -5 -5 -5 -5 -4 -4 -4 -4 -4 -3 -3 -3 -2 -2 -2 -1 -1 ------------ Run | Jun Mat Min Exi Min Mat Fac Sto Rec Fac Upp Upp War Pro Fac Upp Upp Zhi Pro Res Qua Res Tes Sec Acc Com Used RIF Installer . | . . . . . . . . . . . . . . . . . . . . . . . . . . Robots Hacked 1 | . . . . . . . . . . . . . . 1 . . . . . . . . . . . Non-combat 1 | . . . . . . . . . . . . . . 1 . . . . . . . . . . . Combat . | . . . . . . . . . . . . . . . . . . . . . . . . . . Robot Hacks Applied 1 | . . . . . . . . . . . . . . 1 . . . . . . . . . . . find_recycling 1 | . . . . . . . . . . . . . . 1 . . . . . . . . . . . Relay Couplers Released 7 | . . . . . . . . . . . . . . . . . . . 3 . 4 . . . . Machine Destruction 4 | . . . . . . . . . . . . . . . . . . . 3 . 1 . . . . Programmers 3 | . . . . . . . . . . . . . . . . . . . . . 3 . . . . Fabnet Peak Effective % 3 | . . . . . . . . . . . . . 3 3 3 3 3 1 1 1 . . . . . Robots Rewired 9 | . . . . . . . . . . . . 5 . . 3 . . . 1 . . . . . . Allies Hacked . | . . . . . . . . . . . . . . . . . . . . . . . . . . Hacks Repelled . | . . . . . . . . . . . . . . . . . . . . . . . . . . Allies | -11 -10 -10 -10 -9 -8 -7 -7 -7 -5 -5 -5 -5 -4 -4 -4 -4 -4 -3 -3 -3 -2 -2 -2 -1 -1 -------- Run | Jun Mat Min Exi Min Mat Fac Sto Rec Fac Upp Upp War Pro Fac Upp Upp Zhi Pro Res Qua Res Tes Sec Acc Com Total Allies 21 | . . . . 3 . . 1 . . . . 5 . . 3 . . . 4 . . 1 1 3 . Largest Group 5 | . . . . 3 . . 1 . . . . 5 . . 3 . . . 3 . . 1 1 3 . Highest-Rated Group 374 | . . . . 40 . . 10 . . . . 244 . . 138 . . . 141 . . 26 10 374 . Highest-Rated Ally 131 | . . . . 16 . . 10 . . . . 65 . . 46 . . . 47 . . 26 10 131 . Total Orders 1 | . . . . . . . . . . . . . . . . . . . . . . . 1 . . STAY 1 | . . . . . . . . . . . . . . . . . . . . . . . 1 . . Ally Attacks 122 | . . . . 2 . . . . . . . 32 . . 11 . . . 12 . . . . 65 . Total Damage 4923 | . . . . 33 . . . . . . . 974 . . 297 . . . 412 . . . . 3207 . Kills 30 | . . . . 1 . . . . . . . 5 . . 5 . . . 1 . . . . 18 . Allies Corrupted . | . . . . . . . . . . . . . . . . . . . . . . . . . . Allies Melted . | . . . . . . . . . . . . . . . . . . . . . . . . . . Intel | -11 -10 -10 -10 -9 -8 -7 -7 -7 -5 -5 -5 -5 -4 -4 -4 -4 -4 -3 -3 -3 -2 -2 -2 -1 -1 ------- Run | Jun Mat Min Exi Min Mat Fac Sto Rec Fac Upp Upp War Pro Fac Upp Upp Zhi Pro Res Qua Res Tes Sec Acc Com Robot Analysis Total 4 | . . . . . . . . . . . . . . . . . 4 . . . . . . . . Derelict Logs Recovered 9 | . . 1 . 1 . . . . . 2 1 . 1 . 1 2 . . . . . . . . . Drone Launches . | . . . . . . . . . . . . . . . . . . . . . . . . . . Drone Recoveries . | . . . . . . . . . . . . . . . . . . . . . . . . . . Exploration | -11 -10 -10 -10 -9 -8 -7 -7 -7 -5 -5 -5 -5 -4 -4 -4 -4 -4 -3 -3 -3 -2 -2 -2 -1 -1 ------------- Run | Jun Mat Min Exi Min Mat Fac Sto Rec Fac Upp Upp War Pro Fac Upp Upp Zhi Pro Res Qua Res Tes Sec Acc Com Turns Passed 15957 | 7 167 730 158 631 812 310 330 357 832 483 329 1198 480 614 532 280 273 170 656 675 974 866 1737 716 1640 Spaces Moved 16285 | 5 95 514 132 504 699 573 429 590 905 381 291 913 350 626 477 293 214 220 620 686 1399 1141 2442 520 1266 Core . | . . . . . . . . . . . . . . . . . . . . . . . . . . Treads 1728 | . . . . . 156 . . . 594 . . . . . . . 14 44 . . . . . . 920 Legs 6339 | 5 95 514 132 504 80 . . . . 329 291 887 . . . . . . 285 52 . 104 2442 496 123 Wheels . | . . . . . . . . . . . . . . . . . . . . . . . . . . Hover 7216 | . . . . . 463 573 429 590 73 52 . 26 350 626 477 293 200 176 335 634 1399 273 . 24 223 Flight 1002 | . . . . . . . . . 238 . . . . . . . . . . . . 764 . . . Fastest Speed 38 | 120 120 120 120 120 38 38 38 38 39 113 113 80 80 85 85 85 85 65 65 62 62 38 38 38 59 Average Speed 72 | 120 120 120 120 120 74 38 38 42 69 113 113 112 84 85 85 85 85 76 65 66 62 43 38 94 97 Slowest Speed 280 | 120 120 120 120 120 160 38 38 43 146 113 113 113 85 85 85 85 85 153 65 78 62 62 38 248 280 Overloaded Moves . | . . . . . . . . . . . . . . . . . . . . . . . . . . Propulsion Burnouts . | . . . . . . . . . . . . . . . . . . . . . . . . . . Robots Hopped 3 | . . . . . . . . . . . . . . . . . . . . . . 3 . . . Cave-ins Triggered 1 | . . . . . . . . . . . . . . . . . . . . . . . . 1 . Teleports 1 | . . . . . . . . . . . . . . . . . . . . 1 . . . . . Exploration Rate (%) 50 | 2 30 98 49 85 48 17 68 94 28 56 44 76 52 17 57 54 60 38 19 57 29 84 82 17 42 Regions Visited 25 Branch Regions 17 Pre-discovered Areas 10 | . . 1 1 . 1 . 1 1 . 1 . . . . . 1 3 . . . . . . . . Known Exits Taken 20 | . 1 . . . . 1 1 1 1 1 1 1 1 1 1 1 1 1 1 1 1 1 1 1 . Unknown Exits Taken 5 | 1 . 1 1 1 1 . . . . . . . . . . . . . . . . . . . . Scrap Searched 9 | . . 1 . 1 . . . . . 1 1 . 2 . . 3 . . . . . . . . . Spaces Dug 164 | . . . . . . 6 4 2 20 . . . 2 9 3 . . . 49 14 11 21 17 5 1 Terrain Destroyed 1062 | . 29 19 . 37 . 21 27 2 30 193 . 10 21 33 86 . . . 62 16 11 21 17 69 358 Melee 80 | . . . . . . 6 4 2 10 . . . . 7 . . . . 2 . 10 17 17 5 . Projectile 79 | . . . . . . . . . . . . 3 21 2 7 . . . 1 16 1 4 . 1 23 AOE 902 | . 29 19 . 37 . 15 23 . 20 193 . 7 . 24 79 . . . 59 . . . . 63 334 Terrain Rammed . | . . . . . . . . . . . . . . . . . . . . . . . . . . Walls Destroyed . | . . . . . . . . . . . . . . . . . . . . . . . . . . Machines Disabled . | . . . . . . . . . . . . . . . . . . . . . . . . . . Actions | -11 -10 -10 -10 -9 -8 -7 -7 -7 -5 -5 -5 -5 -4 -4 -4 -4 -4 -3 -3 -3 -2 -2 -2 -1 -1 --------- Run | Jun Mat Min Exi Min Mat Fac Sto Rec Fac Upp Upp War Pro Fac Upp Upp Zhi Pro Res Qua Res Tes Sec Acc Com Total 19107 | 8 127 579 131 523 897 628 565 656 1041 409 291 1057 507 681 582 307 296 221 809 845 1460 1376 2947 641 1523 Wait 1181 | . 10 11 . 4 63 12 98 27 48 5 . 44 144 1 39 1 61 . 103 81 23 80 269 35 22 Move 16254 | 4 94 513 131 503 698 572 428 589 904 380 290 912 349 625 476 292 213 219 619 685 1398 1135 2441 519 1265 Hop 2 | . . . . . . . . . . . . . . . . . . . . . . 2 . . . Pick Up 127 | . 6 2 . 3 17 5 2 2 7 1 1 5 . 3 1 1 2 . 3 11 4 20 18 3 10 Fast Attach 81 | . 1 . . . 10 3 1 1 6 . . 6 . 8 1 2 6 . 8 1 . 11 8 1 7 Attach 94 | . . 1 . 1 6 3 . 1 6 1 . 5 . 4 3 . . 1 4 6 2 8 18 9 15 Detach 79 | . . 1 . . 5 2 . 2 7 1 . 4 . 2 2 . . 1 4 6 1 9 10 11 11 Swap 108 | . 3 4 . 2 7 4 2 . 3 . . 5 1 10 2 1 . . 2 4 6 14 23 2 13 Drop 167 | 4 1 3 . 2 24 6 3 6 16 1 . 12 . 5 2 2 9 . 5 4 4 30 16 2 10 Fire 410 | . 12 44 . 8 7 2 2 . 2 14 . 14 13 3 13 8 5 . 46 32 1 5 2 23 154 Melee 504 | . . . . . 60 19 17 28 42 6 . 8 . 20 . . . . 15 13 21 62 142 36 15 Ram . | . . . . . . . . . . . . . . . . . . . . . . . . . . Kick . | . . . . . . . . . . . . . . . . . . . . . . . . . . Crush 1 | . . . . . . . . . . . . . . . . . . . . . . . . . 1 Escape Stasis 14 | . . . . . . . 12 . . . . . . . . . . . . 2 . . . . . Rewire 85 | . . . . . . . . . . . . 42 . . 43 . . . . . . . . . . Trap . | . . . . . . . . . . . . . . . . . . . . . . . . . . Miscellaneous . | . . . . . . . . . . . . . . . . . . . . . . . . . . Route ------- -11/Junkyard -10/Materials -10/Mines (discovered 3 exits: [*Mat x2] / *Exi) -10/Exiles (discovered 2 exits: *Min x2) -9/Mines -8/Materials -7/Factory (discovered 2 exits: *Sto x2) -7/Storage (discovered 2 exits: [*Fac] / *Rec) -7/Recycling -5/Factory (discovered 3 exits: *Fac / *Upp x2) -5/Upper Caves -5/Upper Caves (discovered 2 exits: *Fac / *War) -5/Warlord -4/Proximity Caves -4/Factory (discovered 2 exits: Res / *Upp) -4/Upper Caves -4/Upper Caves (discovered 2 exits: Res / *Zhi) -4/Zhirov -3/Proximity Caves -3/Research (discovered 4 exits: *Res x3 / *Qua) -3/Quarantine -2/Research (discovered 2 exits: *Acc / *Tes) -2/Testing (discovered 2 exits: *Acc / *Sec) -2/Section 7 -1/Access (discovered 2 exits: Sur / *Com) -1/Command To Epsilon Eridani History --------- Turn | Location | Event 1 | -11/Junkyard | Discovered new exit (range 2) 8 | -11/Junkyard | Entered Materials 69 | -10/Materials | Identified exit to Mines 175 | -10/Materials | Entered Mines 207 | -10/Mines | Discovered new exit (range 16) 308 | -10/Mines | Build established: Mutant 633 | -10/Mines | Core integrity fell below 50% 639 | -10/Mines | Discovered new exit (range 7) 640 | -10/Mines | Learned location of Storage (-7) 796 | -10/Mines | A weapon hastily lodged in a ceiling crevice suddenly fell to the ground 899 | -10/Mines | Deemed a non-threat by the Exiles lab entrance 900 | -10/Mines | Discovered new exit (range 5) 905 | -10/Mines | Entered Exiles 925 | -10/Exiles | Discovered new exit (range 15) 938 | -10/Exiles | Met 8R-AWN 955 | -10/Exiles | Met EX-HEX 1003 | -10/Exiles | Met EX-DEC 1007 | -10/Exiles | Learned location of Zion (-7) 1053 | -10/Exiles | Discovered new exit (range 10) 1063 | -10/Exiles | Entered Mines 1143 | -9/Mines | Assisted by bots powering up and referring to "LRC-V3" 1146 | -9/Mines | Met a Derelict bent on vengeance 1238 | -9/Mines | Found a hidden stash of uninstalled traps 1242 | -9/Mines | Received a Rocket Launcher from a helpful Derelict 1486 | -9/Mines | Excavation squad dispatched 1486 | -9/Mines | A large section of the Mines collapsed 1678 | -9/Mines | Discovered new exit (range 6) 1694 | -9/Mines | Entered Materials 1694 | -8/Materials | Evolved 4 slots: Propulsion x2, Utility x2 2504 | -8/Materials | Discovered new exit (range 7) 2506 | -8/Materials | Entered Factory 2506 | -7/Factory | Evolved 2 slots: Utility x2 2507 | -7/Factory | Identified exit to Storage 2816 | -7/Factory | Entered Storage 2850 | -7/Storage | Garrison activated, responded to threat 2891 | -7/Storage | Learned location of Armory (-4) 2895 | -7/Storage | Build established: Scavenger-Mutant 2909 | -7/Storage | Identified exit to Recycling 3031 | -7/Storage | Discovered new exit (range 16) 3144 | -7/Storage | Used back door to open Recycling access 3146 | -7/Storage | Entered Recycling 3150 | -7/Recycling | Found Scrap Engine 3414 | -7/Recycling | Build established: Mutant 3499 | -7/Recycling | Discovered new exit (range 6) 3503 | -7/Recycling | Identified exit to Factory 3503 | -7/Recycling | Entered Factory 3503 | -5/Factory | Evolved 4 slots: Propulsion x1, Utility x3 3542 | -5/Factory | Identified exit to Upper Caves 3738 | -5/Factory | Fabricated Imp. Transmission Jammer? 3809 | -5/Factory | Build established: Scavenger-Mutant 4178 | -5/Factory | Discovered new exit (range 15) 4267 | -5/Factory | Build established: Scavenger-Construct 4335 | -5/Factory | Entered Upper Caves 4339 | -5/Upper Caves | Ambushed by wild Derelicts 4688 | -5/Upper Caves | Attracted the attention of an 0b10 checkpoint 4725 | -5/Upper Caves | Learned 8 Factory zone layouts 4812 | -5/Upper Caves | Discovered new exit (range 6) 4816 | -5/Upper Caves | Identified exit to Upper Caves 4818 | -5/Upper Caves | Entered another Upper Caves area 4826 | -5/Upper Caves | Learned 8 Factory zone layouts 4826 | -5/Upper Caves | Discovered new exit (range 15) 4980 | -5/Upper Caves | Discovered new exit (range 11) 4990 | -5/Upper Caves | Identified exit to Warlord 5147 | -5/Upper Caves | Entered Warlord 5185 | -5/Warlord | System corruption cleaned by Quarantine Array 5370 | -5/Warlord | Met Warlord 5373 | -5/Warlord | Received a Watcher feed algorithm from an ecstatic Tinkerer 5395 | -5/Warlord | Warlord's base attacked by MAIN.C 5651 | -5/Warlord | Build established: Commander-Construct 5676 | -5/Warlord | Found Prototype Energy Gun 5676 | -5/Warlord | Identified Vortex Shotgun 5680 | -5/Warlord | Found Vortex Shotgun 5745 | -5/Warlord | Warlord forces counterattacked 6070 | -5/Warlord | Warlord base infiltrated, sounded retreat 6071 | -5/Warlord | Enhanced Grunt warped into view 6071 | -5/Warlord | Enhanced Grunt warped into view 6071 | -5/Warlord | Enhanced Demolisher warped into view 6183 | -5/Warlord | Spotted Executioner 6200 | -5/Warlord | Spotted Executioner 6205 | -5/Warlord | Destroyed Executioner 6217 | -5/Warlord | Found Prototype Device 6217 | -5/Warlord | Identified Exp. Shock Absorption System 6245 | -5/Warlord | Spotted Striker 6260 | -5/Warlord | Found Prototype Launcher 6260 | -5/Warlord | Identified Chain Missile Launcher 6317 | -5/Warlord | Spotted Executioner 6320 | -5/Warlord | Found Chain Missile Launcher 6328 | -5/Warlord | P-80 Master assimilated allied P0-L8B(g) 6339 | -5/Warlord | Discovered new exit (range 8) 6344 | -5/Warlord | Identified exit to Proximity Caves 6345 | -5/Warlord | Entered Proximity Caves 6504 | -4/Proximity Caves | Received a Behemoth hack from an annoying Tinkerer 6530 | -4/Proximity Caves | Spotter reported a threat 6550 | -4/Proximity Caves | Build established: Scavenger-Construct 6583 | -4/Proximity Caves | Spotter reported a threat 6592 | -4/Proximity Caves | Spotter reported a threat 6636 | -4/Proximity Caves | Spotter reported a threat 6679 | -4/Proximity Caves | Learned Research emergency access door positions 6730 | -4/Proximity Caves | Spotter reported a threat 6818 | -4/Proximity Caves | Discovered new exit (range 9) 6824 | -4/Proximity Caves | Identified exit to Factory 6825 | -4/Proximity Caves | Entered Factory 6825 | -4/Factory | Evolved 2 slots: Utility x2 6826 | -4/Factory | Identified exit to Research 7075 | -4/Factory | Search patrols dispatched 7167 | -4/Factory | Build established: Scavenger-Mutant 7325 | -4/Factory | Search patrols dispatched 7339 | -4/Factory | Discovered new exit (range 16) 7429 | -4/Factory | Identified exit to Upper Caves 7439 | -4/Factory | Entered Upper Caves 7522 | -4/Upper Caves | Attracted the attention of an 0b10 outpost 7573 | -4/Upper Caves | Destroyed 9 combat bots 7577 | -4/Upper Caves | Build established: Infiltrator-Mutant 7618 | -4/Upper Caves | Learned 12 Research zone layouts 7662 | -4/Upper Caves | Encountered a Warlord checkpoint 7701 | -4/Upper Caves | Attacked by a delusional Derelict stockpiling Unaware 7881 | -4/Upper Caves | Spotted B-86 Titan 7926 | -4/Upper Caves | Discovered new exit (range 6) 7936 | -4/Upper Caves | Identified exit to Upper Caves 7971 | -4/Upper Caves | Entered another Upper Caves area 8040 | -4/Upper Caves | Learned location of Testing (-2) 8248 | -4/Upper Caves | Discovered new exit (range 5) 8250 | -4/Upper Caves | Identified exit to Zhirov 8251 | -4/Upper Caves | Entered Zhirov 8251 | -4/Zhirov | Discovered new exit (range 3) 8267 | -4/Zhirov | Met Zhirov 8282 | -4/Zhirov | Learned location of Quarantine (-3) 8282 | -4/Zhirov | Learned location of Command (-1) 8291 | -4/Zhirov | Zhirov requested help retrieving the SGEMP Prototype 8304 | -4/Zhirov | Found Alien Artifact 8304 | -4/Zhirov | Identified Integrated Dissipator 8304 | -4/Zhirov | Installed Integrated Dissipator, increased core heat dissipation (+20) 8318 | -4/Zhirov | Found Alien Artifact 8523 | -4/Zhirov | Identified exit to Proximity Caves 8524 | -4/Zhirov | Entered Proximity Caves 8686 | -3/Proximity Caves | Discovered exit to Research (range 13) 8694 | -3/Proximity Caves | Entered Research 8694 | -3/Research | Evolved 2 slots: Power x1, Propulsion x1 8695 | -3/Research | Identified exit to Quarantine 8695 | -3/Research | Identified exit to Research 9305 | -3/Research | Discovered exit to Research (range 15) 9318 | -3/Research | Found Prototype Processor 9318 | -3/Research | Identified Exp. Target Analyzer 9319 | -3/Research | System corruption reached 10% 9350 | -3/Research | Entered Quarantine 9355 | -3/Quarantine | Spotted Alpha 7 9412 | -3/Quarantine | Found Alien Artifact 9416 | -3/Quarantine | Found Alien Artifact 9421 | -3/Quarantine | Found Alien Artifact 9425 | -3/Quarantine | Found Alien Artifact 9427 | -3/Quarantine | Found Alien Artifact 9635 | -3/Quarantine | Found Alien Slashing Weapon 9635 | -3/Quarantine | Identified Sigix Broadsword 9694 | -3/Quarantine | Found Alien Artifact 9724 | -3/Quarantine | Discovered exit to Research (range 16) 9735 | -3/Quarantine | Identified Dimensional Node Initializer (x2) 9735 | -3/Quarantine | Initialized slip node 9805 | -3/Quarantine | Found Alien Impact Weapon 10023 | -3/Quarantine | Identified Hpw. Transdimensional Reconstructor (x2) 10023 | -3/Quarantine | Warped through subspace to slip node 10025 | -3/Quarantine | Entered Research 10025 | -2/Research | Warlord forces began assault on 0b10 10025 | -2/Research | Evolved 2 slots: Weapon x2 10033 | -2/Research | Identified Core Stripper 10067 | -2/Research | Met up with Warlord 10135 | -2/Research | Research machine network offline 10311 | -2/Research | Borebot progress halted 10573 | -2/Research | Discovered new exit (range 19) 10584 | -2/Research | Identified exit to Access 10630 | -2/Research | Build established: Infiltrator-Construct 10716 | -2/Research | Borebot progress halted 10995 | -2/Research | Discovered new exit (range 7) 10998 | -2/Research | Identified exit to Testing 10999 | -2/Research | Entered Testing 11012 | -2/Testing | Found Prototype Device 11016 | -2/Testing | Identified Exp. Hardlight Generator 11076 | -2/Testing | Build established: Construct 11080 | -2/Testing | Found Prototype Device 11080 | -2/Testing | Identified Exp. Focal Shield 11084 | -2/Testing | Found Prototype Device 11084 | -2/Testing | Identified Thermal Barrier 11134 | -2/Testing | Found Prototype Hackware 11143 | -2/Testing | Identified Exp. Hacking Suite 11169 | -2/Testing | Found Prototype Energy Gun 11185 | -2/Testing | Identified Warp Gun 11204 | -2/Testing | Found Prototype Launcher 11213 | -2/Testing | Identified Z-bomb Delivery System 11256 | -2/Testing | Discovered exit to Access (range 20) 11282 | -2/Testing | Protovariant out of control (PG-U6LG4CLG88) 11282 | -2/Testing | Unleashed a protovariant (PG-U6LG4CLG88) 11302 | -2/Testing | Garrison activated, responded to threat 11335 | -2/Testing | Spotted Striker 11335 | -2/Testing | Spotted Striker 11367 | -2/Testing | Destroyed Striker 11410 | -2/Testing | Destroyed Striker 11417 | -2/Testing | Spotted Alpha 7 11424 | -2/Testing | Destroyed Alpha 7 11446 | -2/Testing | Stole the SGEMP Prototype 11627 | -2/Testing | Found Prototype Hackware 11698 | -2/Testing | Identified Ghost Barrier 11747 | -2/Testing | Found Prototype Protection 11747 | -2/Testing | Identified Med. Regenerative Plating 11751 | -2/Testing | Found Prototype Protection 11751 | -2/Testing | Identified SHELL Armor 11796 | -2/Testing | Spotted Fortress 11797 | -2/Testing | Destroyed Fortress 11805 | -2/Testing | Found Prototype Device 11833 | -2/Testing | Discovered new exit (range 5) 11834 | -2/Testing | Identified exit to Section 7 11860 | -2/Testing | Identified Exp. EM Disruption Field 11865 | -2/Testing | Entered Section 7 11913 | -2/Section 7 | Found Prototype Device 11930 | -2/Section 7 | Identified Exp. Phase Shifter 11941 | -2/Section 7 | Found Exp. Phase Shifter 11976 | -2/Section 7 | Spotted B-90 Cyclops 12000 | -2/Section 7 | Build established: Hacker-Gladiator 12152 | -2/Section 7 | Found Integrated Dissipator 12152 | -2/Section 7 | Installed Integrated Dissipator, increased core heat dissipation (+20) 12346 | -2/Section 7 | Found Alien Artifact 12410 | -2/Section 7 | Identified Integrated Mediator 12410 | -2/Section 7 | Installed Integrated Mediator, increased core attachment efficiency. 12511 | -2/Section 7 | Spotted Alpha 7 12511 | -2/Section 7 | Spotted Alpha 7 12626 | -2/Section 7 | Destroyed Alpha 7 12649 | -2/Section 7 | Destroyed Alpha 7 12653 | -2/Section 7 | Found Antimissile System 12849 | -2/Section 7 | Spotted B-99 Colossus 12890 | -2/Section 7 | Found Alien Artifact 12890 | -2/Section 7 | Identified LRC Matter Compressor 12890 | -2/Section 7 | Installed LRC Matter Compressor, increased matter storage capacity (+125) 12892 | -2/Section 7 | Found Alien Artifact 12892 | -2/Section 7 | Identified LRC Energy Well 12892 | -2/Section 7 | Installed LRC Energy Well, increased energy storage capacity (+250) 13007 | -2/Section 7 | Found Alien Artifact 13025 | -2/Section 7 | Found Alien Artifact 13027 | -2/Section 7 | Found Alien Artifact 13028 | -2/Section 7 | Found Alien Artifact 13049 | -2/Section 7 | Destroyed B-99 Colossus 13077 | -2/Section 7 | Spotted Executioner 13083 | -2/Section 7 | Spotted Striker 13083 | -2/Section 7 | Spotted Striker 13136 | -2/Section 7 | Found Alien Energy Gun 13136 | -2/Section 7 | Identified Sigix Sheargun 13138 | -2/Section 7 | Found Sigix Sheargun 13144 | -2/Section 7 | Spotted Striker 13144 | -2/Section 7 | Spotted Striker 13478 | -2/Section 7 | Identified Integrated Reactor 13478 | -2/Section 7 | Identified Core Expander (x3) 13478 | -2/Section 7 | Installed Integrated Reactor, increased core energy generation (+10) 13480 | -2/Section 7 | Installed Core Expander, added new Utility slot 13481 | -2/Section 7 | Installed Core Expander, added new Power slot 13482 | -2/Section 7 | Installed Core Expander, added new Power slot 13579 | -2/Section 7 | Discovered exit to Access (range 5) 13591 | -2/Section 7 | Found Integrated Dissipator 13591 | -2/Section 7 | Installed Integrated Dissipator, increased core heat dissipation (+20) 13602 | -2/Section 7 | Entered Access 13603 | -1/Access | Loaded intel: 115 machine locations 13603 | -1/Access | Loaded intel: 61 trap records 13603 | -1/Access | Identified exit to Surface 13603 | -1/Access | Discovered exit to Surface (range 150) 13603 | -1/Access | Identified exit to Command 13603 | -1/Access | Discovered exit to Command (range 210) 13603 | -1/Access | Delivered the SGEMP Prototype to Zhirov 13603 | -1/Access | Zhirov transferred Access data 13760 | -1/Access | Build established: Hacker-Mutant 13924 | -1/Access | Zhirov warped through subspace 14025 | -1/Access | Crushed by falling debris 14150 | -1/Access | First assault squad dispatched 14318 | -1/Access | Entered Command 14383 | -1/Command | Found Quantum Capacitor 14612 | -1/Command | First assault squad dispatched 14777 | -1/Command | Lost 3 parts (1u2w) 15022 | -1/Command | Destroyed 9 combat bots 15140 | -1/Command | Found Adv. Force Booster 15472 | -1/Command | Phase Generator disabled 15726 | -1/Command | High security lockdown imminent 15806 | -1/Command | High security lockdown engaged 15817 | -1/Command | Spotted M Guard 15817 | -1/Command | Spotted M Guard 15818 | -1/Command | Spotted Combat Programmer 15818 | -1/Command | Spotted Combat Programmer 15848 | -1/Command | Identified Transdimensional Reconstructor 15848 | -1/Command | Failed to warp due to unstable space 15858 | -1/Command | Destroyed Combat Programmer 15946 | -1/Command | Spotted Alpha 7 15946 | -1/Command | Spotted Striker 15946 | -1/Command | Spotted Executioner 15946 | -1/Command | Spotted Executioner 15946 | -1/Command | Spotted Alpha 7 15946 | -1/Command | Spotted Striker 15946 | -1/Command | Spotted Executioner 15946 | -1/Command | Spotted Executioner 15948 | -1/Command | Spotted B-99 Colossus 15950 | -1/Command | Discovered exit to Surface (range 13) 15952 | -1/Command | Spotted B-99 Colossus 15958 | *** | Escaped! Last Messages --------------- 15953_ Penetrated by Slug. 15953_ R-10 Processor collects Med. Matter Pod. 15953_ Penetrated by Slug. 15953_ Adv. Signal Interpreter destroyed. 15953_ Penetrated by Slug. 15953_ Slug penetrates Access Shell. 15954_ Acquired 1 matter. 15954_ The Access Shell folds into the floor. 15954_ Penetrated by Slug. 15955_ Slug penetrates Executioner. 15955_ Penetrated by Slug. 15955_ SHELL Armor destroyed. 15955_ Penetrated by Slug. 15955_ Slug penetrates B-99 Colossus. 15955_ Penetrated by Slug. 15955_ Slug penetrates Wall. 15956_ Slug penetrates Executioner. 15957_ Penetrated by Slug. 15957_ Slug penetrates Wall. 15958_ System corrupted: Energy discharge (-269). Map ----- +----------------------------------------------------+ | ???????????? #"""" | | ??????????? #"""" | | ???????????? #"""" | | ????????????????## = * #"""" | | ?????????????????# #""" """### #???? | | ?????????????????# #"""T"""#?# #????? | | ?????????????????###### #########?# ######## | | ??????????????????????# #?????????# | | ?????????????????????##"+"+##????????# | | ?????????????????????# ^ #????????# | | ????????????????????## ^ ^ ##???????# | | ????????????????????# 7 p #???????#######/#+##+ | | ????????????????????#; K ##??????### | | ????????????????????#!=% #??????#"" | | ????????????????????##%K^ 7E##??????#"" | | ???????????????????##![ ^ #??????#"" | | ???????????????????#";E ^E##??????#T | | ????????????????????# ##?????#" | | ??????????????????#### ^ ^;;##????# | | ??????????????????#BB BB#????#"" " "" | | ??????????????????#BB % BB#????### "R"" | | ??????????????????# ^ % #??????# """ | | ?????????????????## #??????# | | ?????????????????#; #??????# | | ?????????????????## "" #??????##########+# | | ??????????????????# "@ #???????????????# # | | ??????????????????# #???????????????# # | | ??????????????????# #???????????????# # | | ??????????????????# #??????########## # | | ??????????????????# #??????? | | ##????????????????# #???????##### | | #????????????????##;###########???????????# | | #?????????????????##??????????????????????# | | ###########???????????????????????????????# | | ## #???????????????????????????????# ##" | | ## #???????????????????????????????####### | | ## "" ####################################### | | ## """" / | | ## """" ######+#################### ########### | | ## "" #??? ?????????????????# #?????????# | | ## #? #????????????????# #?????????# | | ## ## !! #???????????????? ??######## | | ??# ##! !! #???????????????? ??# ] | | #######+#############???????????????? ??# ] | | +???????????????? ##??# ]! | | #???????????????? ????# | | +???????????????? ????# | | #???????????????# ????######## | | #???????????????# ????# ] | | ##+################ #???????????????# ????# | +----------------------------------------------------+ Best States ------------- Heat Dissipation 143 Energy Generation 59 Energy Capacity 1808 Matter Stores 425 Matter Capacity 425 Sight Range 20 Robot Scan Range 18 Terrain Scan Range 24 Terrain Scan Density 210 ECM Strength 2 Jamming Range 16 Armor Coverage 900 Resistance: EM 75 Utility Shielding 66 Point Defense Rating 240 Phase Shifting 20 Evasion (%) 89 Targeting Accuracy 8 Melee Accuracy 18 Target Analysis 8 Recoil Reduction 6 Matter Filtering 50 Offensive Hacking 16 Defensive Hacking 20 Item Schematics ----------------- Assault Drone Bay | -4/Zhirov | Free Exp. Heat Sink | -4/Zhirov | Free Exp. Optical Array | -4/Zhirov | Free Imp. Arc Thrower | -4/Zhirov | Free Cld. Field Propulsion Drive | -2/Testing | Archive Com. Particle Reactor | -2/Testing | Archive Hdn. Centrium Wheel | -2/Testing | Archive Exp. Power Amplifier | -2/Testing | Archive Enh. Armored Heavy Treads | -2/Testing | Archive Exp. Coolant Injector | -2/Section 7 | Archive Helical Railgun | -2/Section 7 | Archive Robot Schematics ------------------ W-44 Eye | -2/Testing | Archive A-27 Freighter | -2/Testing | Archive A-02 Transporter | -2/Testing | Archive Y-72 Warden | -2/Section 7 | Archive Fabricated ------------ Imp. Transmission Jammer | x1 | -5/Factory | Preloaded Alien Tech Used ----------------- Integrated Dissipator Sigix Broadsword Dimensional Node Initializer High-powered Transdimensional Reconstructor Core Stripper Integrated Mediator LRC Matter Compressor LRC Energy Well Sigix Sheargun Integrated Reactor Core Expander Transdimensional Reconstructor Achievements -------------- Dodgeball, But With Guns Rampage Watch This! Challenges ------------ None Game ------ Seed ReactionShieldSlayer Manual? 0 Play Time 04:54:28 Cumulative 105.0 hours Start 2023.04.20 @ 02:37:26 End 2023.04.21 @ 18:27:54 Sessions 15 Manual Loads 0 Difficulty Rogue Special Mode None Game No. 83 Rogue 83 Adventurer 0 Explorer 0 Win Type 0 Total 2 Types 2/0/0/0/0/0/0/0/0 Lore% 58 Gallery% 72 Achievement% 62 Wizard Run 0 Options --------- ASCII 0 Keyboard 1 Movement Vi Keybinds 0 Fullscreen 2 Font 18/Terminus Map View 76x50 Tactical HUD 1 Map Filters NONE Filters NONE Steam X RUN: 1a3b18e6-adb8-47d6-9c35-f63d5a68986a